fUST/lending_fUST_20260602
["ID","MTS","AMOUNT","RATE_DAILY","PERIOD"]
[423753526,1780386648000,-549.41003399,0.00017045,2]
[423753525,1780386648000,-328.57163696,0.00017045,2]
[423753527,1780386648000,-350.33492691,0.00017045,2]
[423753530,1780386648000,-648.02544111,0.00017061,2]
[423753529,1780386648000,-391.86687159,0.00017061,2]
[423753531,1780386648000,-456.5312154,0.00017061,2]
[423753534,1780386648000,-453.65391958,0.00017061,2]
[423753504,1780386648000,-399.2689226,0.0001656,2]
[423753516,1780386648000,-375.42203432,0.00017033,2]
[423753505,1780386648000,-387.48020172,0.0001656,2]
[423753477,1780386648000,-404.84523843,0.00016546,2]
[423753506,1780386648000,-306.95012472,0.000166,2]
[423753535,1780386648000,-119.21833994,0.00017061,2]
[423753475,1780386648000,-237.2486679,0.00016546,2]
[423753476,1780386648000,-394.66413286,0.00016546,2]
[423753478,1780386648000,-347.20685782,0.00016546,2]
[423753480,1780386648000,-199.22158488,0.00016546,2]
[423753479,1780386648000,-404.54870463,0.00016546,2]
[423753481,1780386648000,-332.10237059,0.00016547,2]
[423753483,1780386648000,-305.9638079,0.0001656,2]
[423753482,1780386648000,-206.28885584,0.0001656,2]
[423753484,1780386648000,-202.23173608,0.0001656,2]
[423753485,1780386648000,-320.77872223,0.0001656,2]
[423753487,1780386648000,-375.10847322,0.0001656,2]
[423753488,1780386648000,-249.58069556,0.0001656,2]
[423753502,1780386648000,-180.5253821,0.0001656,2]
[423753486,1780386648000,-393.94985078,0.0001656,2]
[423753490,1780386648000,-156.63101503,0.0001656,2]
[423753491,1780386648000,-396.02546034,0.0001656,2]
[423753492,1780386648000,-375.4502895,0.0001656,2]
[423753493,1780386648000,-412.47061572,0.0001656,2]
[423753495,1780386648000,-235.93010049,0.0001656,2]
[423753494,1780386648000,-341.57534615,0.0001656,2]
[423753498,1780386648000,-240.38921499,0.0001656,2]
[423753497,1780386648000,-376.9239525,0.0001656,2]
[423753500,1780386648000,-444.28799501,0.0001656,2]
[423753496,1780386648000,-314.88125365,0.0001656,2]
[423753501,1780386648000,-135.11034719,0.0001656,2]
[423753499,1780386648000,-205.9648586,0.0001656,2]
[423753503,1780386648000,-316.86259774,0.0001656,2]
[423753489,1780386648000,-403.93929714,0.0001656,2]
[423753537,1780386648000,-227.37060269,0.0001453,2]
[423753560,1780386648000,-313.11309195,0.00017061,2]
[423753538,1780386648000,-72.62939731,0.0001453,2]
[423753571,1780386648000,-404.46347217,0.00017076,2]
[423753573,1780386648000,-481.16808334,0.00017076,2]
[423753578,1780386648000,-594.03819051,0.00017076,2]
[423753576,1780386648000,-605.90894571,0.00017076,2]
[423753579,1780386648000,-563.17543425,0.00017076,2]
[423753577,1780386648000,-313.26203007,0.00017076,2]
[423753575,1780386648000,-562.66270983,0.00017076,2]
[423753574,1780386648000,-590.92477618,0.00017076,2]
[423753581,1780386648000,-512.36301922,0.00017076,2]
[423753580,1780386648000,-618.70592358,0.00017076,2]
[423753584,1780386648000,-565.38592875,0.00017076,2]
[423753583,1780386648000,-471.86020099,0.00017076,2]
[423753586,1780386648000,-480.77842997,0.00017076,2]
[423753572,1780386648000,-519.21845048,0.00017076,2]
[423753585,1780386648000,-472.32188047,0.00017076,2]
[423753587,1780386648000,-411.92971721,0.00017076,2]
[423753592,1780386648000,-263.11228567,0.00017076,2]
[423753591,1780386648000,-598.9033839,0.00017076,2]
[423753589,1780386648000,-473.45359394,0.00017076,2]
[423753590,1780386648000,-475.29389661,0.00017076,2]
[423753594,1780386648000,-152.0,0.00017237,2]
[423753593,1780386648000,-581.22030259,0.00017076,2]
[423753596,1780386648000,-755.72,0.0001726,2]
[423753595,1780386648000,-500.0,0.0001726,2]
[423753598,1780386648000,-166.6822185,0.00017376,2]
[423753597,1780386648000,-167.22133538,0.00017376,2]
[423753599,1780386648000,-229.08049624,0.00017376,2]
[423753536,1780386648000,-300.0,0.0001453,2]
[423753588,1780386648000,-666.43199251,0.00017076,2]
[423753566,1780386648000,-606.82305694,0.00017061,2]
[423753582,1780386648000,-219.00720916,0.00017076,2]
[423753570,1780386648000,-458.94571185,0.00017076,2]
[423753541,1780386648000,-362.8170901,0.00017061,2]
[423753568,1780386648000,-498.15355588,0.00017062,2]
[423753543,1780386648000,-270.12877305,0.00017061,2]
[423753542,1780386648000,-224.52433258,0.00017061,2]
[423753539,1780386648000,-300.0,0.0001453,2]
[423753540,1780386648000,-300.0,0.0001453,2]
[423753544,1780386648000,-157.76842538,0.00017061,2]
[423753546,1780386648000,-658.80519075,0.00017061,2]
[423753551,1780386648000,-441.61020257,0.00017061,2]
[423753545,1780386648000,-471.47091932,0.00017061,2]
[423753547,1780386648000,-454.38687881,0.00017061,2]
[423753550,1780386648000,-457.83633047,0.00017061,2]
[423753548,1780386648000,-258.97798711,0.00017061,2]
[423753552,1780386648000,-158.82524413,0.00017061,2]
[423753554,1780386648000,-580.17156718,0.00017061,2]
[423753549,1780386648000,-477.87298878,0.00017061,2]
[423753567,1780386648000,-398.44316976,0.00017061,2]
[423753555,1780386648000,-472.828933,0.00017061,2]
[423753556,1780386648000,-510.15943845,0.00017061,2]
[423753557,1780386648000,-433.74403324,0.00017061,2]
[423753558,1780386648000,-268.5110064,0.00017061,2]
[423753564,1780386648000,-520.81028673,0.00017061,2]
[423753559,1780386648000,-483.42796269,0.00017061,2]
[423753565,1780386648000,-217.79128228,0.00017061,2]
[423753562,1780386648000,-474.49733579,0.00017061,2]
[423753563,1780386648000,-607.26785765,0.00017061,2]
[423753561,1780386648000,-591.99619929,0.00017061,2]
[423753553,1780386648000,-489.19163428,0.00017061,2]
[423753569,1780386648000,-412.57771167,0.00017076,2]
[423753641,1780386649000,-878.406921,0.00017404,2]
[423753643,1780386649000,-773.56208958,0.00017404,2]
[423753646,1780386649000,-226.73339305,0.00017404,2]
[423753645,1780386649000,-414.53636177,0.00017404,2]
[423753642,1780386649000,-733.78745143,0.00017404,2]
[423753637,1780386649000,-605.84917175,0.00017404,2]
[423753638,1780386649000,-662.41530385,0.00017404,2]
[423753640,1780386649000,-317.65048827,0.00017404,2]
[423753636,1780386649000,-517.95597423,0.00017404,2]
[423753639,1780386649000,-608.7082872,0.00017404,2]
[423753634,1780386649000,-366.30528807,0.00017404,2]
[423753647,1780386649000,-789.32826572,0.00017404,2]
[423753644,1780386649000,-537.0220128,0.00017404,2]
[423753649,1780386649000,-694.41371564,0.00017404,2]
[423753660,1780386649000,-792.05092068,0.00017419,2]
[423753651,1780386649000,-809.09740926,0.00017404,2]
[423753650,1780386649000,-435.58256457,0.00017404,2]
[423753654,1780386649000,-606.69520825,0.00017419,2]
[423753653,1780386649000,-611.9276158,0.00017419,2]
[423753655,1780386649000,-692.2912673,0.00017419,2]
[423753657,1780386649000,-748.74208668,0.00017419,2]
[423753652,1780386649000,-597.66475464,0.00017404,2]
[423753656,1780386649000,-787.89970157,0.00017419,2]
[423753659,1780386649000,-469.8930451,0.00017419,2]
[423753658,1780386649000,-807.87859429,0.00017419,2]
[423753661,1780386649000,-824.94123144,0.00017419,2]
[423753662,1780386649000,-405.22957014,0.00017419,2]
[423753635,1780386649000,-340.93526477,0.00017404,2]
[423753663,1780386649000,-683.15069229,0.00017419,2]
[423753648,1780386649000,-809.69047686,0.00017404,2]
[423753632,1780386649000,-408.95657801,0.00017404,2]
[423753601,1780386649000,-231.01971852,0.00017376,2]
[423753627,1780386649000,-296.76931642,0.00017404,2]
[423753665,1780386649000,-707.79030148,0.00017419,2]
[423753600,1780386649000,-289.31804085,0.00017376,2]
[423753603,1780386649000,-457.26877417,0.00017376,2]
[423753602,1780386649000,-730.80357676,0.00017376,2]
[423753605,1780386649000,-487.3109141,0.00017376,2]
[423753606,1780386649000,-367.25569071,0.00017376,2]
[423753607,1780386649000,-523.42085427,0.00017388,2]
[423753604,1780386649000,-152.77099506,0.00017376,2]
[423753609,1780386649000,-177.33222344,0.00017388,2]
[423753608,1780386649000,-154.12206414,0.00017388,2]
[423753610,1780386649000,-514.2549423,0.00017388,2]
[423753611,1780386649000,-177.93830567,0.00017388,2]
[423753616,1780386649000,-175.75263383,0.00017388,2]
[423753614,1780386649000,-550.88353607,0.00017388,2]
[423753631,1780386649000,-315.53685077,0.00017404,2]
[423753617,1780386649000,-492.85745544,0.00017388,2]
[423753615,1780386649000,-563.13305148,0.00017388,2]
[423753612,1780386649000,-183.57808014,0.00017388,2]
[423753619,1780386649000,-515.03494354,0.00017388,2]
[423753618,1780386649000,-10.46744682,0.00017388,2]
[423753620,1780386649000,-631.95872064,0.00017402,2]
[423753621,1780386649000,-336.39812104,0.00017404,2]
[423753623,1780386649000,-799.48964218,0.00017404,2]
[423753622,1780386649000,-864.03392148,0.00017404,2]
[423753624,1780386649000,-429.99719647,0.00017404,2]
[423753626,1780386649000,-308.10257635,0.00017404,2]
[423753629,1780386649000,-449.04866516,0.00017404,2]
[423753630,1780386649000,-540.25754609,0.00017404,2]
[423753628,1780386649000,-642.71390673,0.00017404,2]
[423753625,1780386649000,-189.09412957,0.00017404,2]
[423753613,1780386649000,-806.05299804,0.00017388,2]
[423753664,1780386649000,-438.01441833,0.00017419,2]
[423753633,1780386649000,-219.67131442,0.00017404,2]
[423753666,1780386649000,-629.7625073,0.00017419,2]
[423753702,1780386649000,-150.64,0.00018578,2]
[423753701,1780386649000,-1031.1928679,0.00018446,2]
[423753704,1780386649000,-755.72,0.00018904,2]
[423753703,1780386649000,-755.72,0.0001863,2]
[423753708,1780386649000,-152.67,0.00019031,7]
[423753705,1780386649000,-150.79,0.00019012,2]
[423753707,1780386649000,-152.67,0.00019031,7]
[423753706,1780386649000,-1238.53785591,0.00019018,2]
[423753711,1780386649000,-152.67,0.00019031,7]
[423753710,1780386649000,-152.67,0.00019031,7]
[423753714,1780386649000,-152.67,0.00019031,7]
[423753713,1780386649000,-152.67,0.00019031,7]
[423753712,1780386649000,-152.67,0.00019031,7]
[423753715,1780386649000,-152.67,0.00019031,7]
[423753696,1780386649000,-1061.60387649,0.00018246,2]
[423753716,1780386649000,-1512.05936258,0.00019035,2]
[423753723,1780386649000,-152.67,0.00019037,7]
[423753722,1780386649000,-152.67,0.00019037,7]
[423753718,1780386649000,-152.67,0.00019037,7]
[423753719,1780386649000,-152.67,0.00019037,7]
[423753720,1780386649000,-152.67,0.00019037,7]
[423753721,1780386649000,-152.67,0.00019037,7]
[423753725,1780386649000,-152.67,0.00019043,7]
[423753724,1780386649000,-152.67,0.00019037,7]
[423753726,1780386649000,-152.67,0.00019043,7]
[423753727,1780386649000,-152.67,0.00019043,7]
[423753729,1780386649000,-755.72,0.00019178,2]
[423753731,1780386649000,-150.77,0.00019606,2]
[423753730,1780386649000,-755.72,0.00019452,2]
[423753667,1780386649000,-721.16764496,0.00017419,2]
[423753717,1780386649000,-1100.09881175,0.00019035,2]
[423753695,1780386649000,-755.72,0.00018082,2]
[423753709,1780386649000,-152.67,0.00019031,7]
[423753700,1780386649000,-150.6,0.00018364,2]
[423753668,1780386649000,-631.27145859,0.00017419,2]
[423753669,1780386649000,-633.72519548,0.00017419,2]
[423753671,1780386649000,-526.22457135,0.00017419,2]
[423753670,1780386649000,-798.5378452,0.00017419,2]
[423753672,1780386649000,-774.96040345,0.00017419,2]
[423753674,1780386649000,-755.72,0.00017534,2]
[423753675,1780386649000,-270.0,0.00017661,2]
[423753728,1780386649000,-152.67,0.00019043,7]
[423753673,1780386649000,-500.0,0.00017534,2]
[423753678,1780386649000,-756.08986596,0.00017748,2]
[423753677,1780386649000,-1080.04240185,0.00017748,2]
[423753680,1780386649000,-300.0,0.0001453,2]
[423753682,1780386649000,-67.490155,0.00017748,2]
[423753684,1780386649000,-803.39238341,0.00017748,2]
[423753683,1780386649000,-757.31146469,0.00017748,2]
[423753676,1780386649000,-884.66989708,0.00017731,2]
[423753681,1780386649000,-328.1247688,0.00017748,2]
[423753698,1780386649000,-942.94183864,0.00018263,2]
[423753699,1780386649000,-755.72,0.00018356,2]
[423753694,1780386649000,-271.27007714,0.00018082,2]
[423753691,1780386649000,-371.60103348,0.00018,2]
[423753693,1780386649000,-660.62405952,0.00018,2]
[423753692,1780386649000,-208.3894624,0.00018,2]
[423753697,1780386649000,-1296.05088221,0.00018263,2]
[423753689,1780386649000,-755.72,0.00017808,2]
[423753690,1780386649000,-206.4450186,0.00018,2]
[423753688,1780386649000,-500.0,0.00017808,2]
[423753687,1780386649000,-1031.1765393,0.00017763,2]
[423753685,1780386649000,-764.90951975,0.00017763,2]
[423753686,1780386649000,-1009.84824286,0.00017763,2]
[423753679,1780386649000,-390.16994173,0.00017748,2]
[423753732,1780386650000,-144.26268709,0.00019726,2]
[423753984,1780386978000,36007.81442187,0.00022899,30]
[423753993,1780387310000,-1882.11546948,0.00011351,2]
[423754044,1780387832000,-397.91517571,0.00010687,2]
[423754041,1780387832000,-305.668248,0.00010687,2]
[423754049,1780387832000,-1434.41911928,0.00010687,2]
[423754052,1780387832000,-1456.72154225,0.00010687,2]
[423754054,1780387832000,-1405.27591476,0.00010687,2]
[423754055,1780387832000,-182.11546948,0.00010795,2]
[423754057,1780387832000,-200.0,0.00011093,2]
[423754059,1780387832000,-300.0,0.00011694,2]
[423754066,1780387832000,-300.0,0.00011695,2]
[423754062,1780387832000,-300.0,0.00011695,2]
[423754061,1780387832000,-300.0,0.00011695,2]
[423754063,1780387832000,-300.0,0.00011695,2]
[423754069,1780387832000,-300.0,0.00011695,2]
[423754058,1780387832000,-500.0,0.00011467,2]
[423754064,1780387832000,-300.0,0.00011695,2]
[423754060,1780387832000,-1200.0,0.00011694,2]
[423754067,1780387832000,-300.0,0.00011695,2]
[423754078,1780387832000,-502.678274,0.00012405,2]
[423754080,1780387832000,-600.0,0.00012778,2]
[423754077,1780387832000,-150.07,0.00012,2]
[423754081,1780387832000,-699.0,0.00012863,2]
[423754076,1780387832000,-127.21640907,0.00011695,2]
[423754073,1780387832000,-300.0,0.00011695,2]
[423754075,1780387832000,-172.78359093,0.00011695,2]
[423754079,1780387832000,-2435.8690669,0.00012529,2]
[423754083,1780387832000,-1843.14575063,0.0001336,2]
[423754074,1780387832000,-300.0,0.00011695,2]
[423754082,1780387832000,-220.84496051,0.00013359,2]
[423754071,1780387832000,-300.0,0.00011695,2]
[423754070,1780387832000,-300.0,0.00011695,2]
[423754065,1780387832000,-300.0,0.00011695,2]
[423754068,1780387832000,-300.0,0.00011695,2]
[423754072,1780387832000,-300.0,0.00011695,2]
[423754111,1780387838000,-311.32914763,0.00013698,2]
[423754112,1780387838000,-276.63779778,0.00013698,2]
[423754103,1780387838000,-294.52,0.00013698,2]
[423754102,1780387838000,-500.0,0.00013698,2]
[423754100,1780387838000,-584.99234811,0.00013698,2]
[423754108,1780387838000,-500.0,0.00013698,2]
[423754104,1780387838000,-500.0,0.00013698,2]
[423754105,1780387838000,-525.58,0.00013698,2]
[423754109,1780387838000,-500.0,0.00013698,2]
[423754101,1780387838000,-500.0,0.00013698,2]
[423754110,1780387838000,-500.0,0.00013698,2]
[423754096,1780387838000,-500.0,0.00013698,2]
[423754106,1780387838000,-500.0,0.00013698,2]
[423754099,1780387838000,-500.0,0.00013698,2]
[423754098,1780387838000,-584.95,0.00013698,2]
[423754094,1780387838000,-500.0,0.00013698,2]
[423754097,1780387838000,-500.0,0.00013698,2]
[423754091,1780387838000,-500.0,0.00013698,2]
[423754093,1780387838000,-500.0,0.00013698,2]
[423754092,1780387838000,-500.0,0.00013698,2]
[423754107,1780387838000,-500.0,0.00013698,2]
[423754090,1780387838000,-500.0,0.00013698,2]
[423754087,1780387838000,-18923.64417165,0.0001336,2]
[423754088,1780387838000,-194.57511088,0.00013498,2]
[423754086,1780387838000,-8638.59232502,0.0001336,2]
[423754095,1780387838000,-500.0,0.00013698,2]
[423754089,1780387838000,-174.9427598,0.00013697,2]
[423754126,1780387838000,-500.0,0.00013698,2]
[423754125,1780387838000,-500.0,0.00013698,2]
[423754143,1780387838000,-500.0,0.00013698,2]
[423754142,1780387838000,-500.0,0.00013698,2]
[423754140,1780387838000,-500.0,0.00013698,2]
[423754136,1780387838000,-500.0,0.00013698,2]
[423754139,1780387838000,-500.0,0.00013698,2]
[423754135,1780387838000,-500.0,0.00013698,2]
[423754134,1780387838000,-500.0,0.00013698,2]
[423754137,1780387838000,-500.0,0.00013698,2]
[423754133,1780387838000,-500.0,0.00013698,2]
[423754114,1780387838000,-297.42,0.00013698,2]
[423754128,1780387838000,-510.08,0.00013698,2]
[423754130,1780387838000,-320.09,0.00013698,2]
[423754127,1780387838000,-220.30622806,0.00013698,2]
[423754119,1780387838000,-500.0,0.00013698,2]
[423754122,1780387838000,-500.0,0.00013698,2]
[423754116,1780387838000,-500.0,0.00013698,2]
[423754118,1780387838000,-500.0,0.00013698,2]
[423754120,1780387838000,-500.0,0.00013698,2]
[423754121,1780387838000,-500.0,0.00013698,2]
[423754123,1780387838000,-500.0,0.00013698,2]
[423754117,1780387838000,-586.83,0.00013698,2]
[423754115,1780387838000,-274.48,0.00013698,2]
[423754131,1780387838000,-500.0,0.00013698,2]
[423754113,1780387838000,-500.0,0.00013698,2]
[423754124,1780387838000,-500.0,0.00013698,2]
[423754163,1780387839000,-500.0,0.00013698,2]
[423754166,1780387839000,-3216.435,0.00013698,2]
[423754153,1780387839000,-500.0,0.00013698,2]
[423754167,1780387839000,-234.32090955,0.00013698,2]
[423754177,1780387839000,-160.0,0.00013911,2]
[423754170,1780387839000,-363.71165917,0.00013698,2]
[423754162,1780387839000,-500.0,0.00013698,2]
[423754168,1780387839000,-265.67909045,0.00013698,2]
[423754165,1780387839000,-557.64,0.00013698,2]
[423754152,1780387839000,-500.0,0.00013698,2]
[423754147,1780387839000,-500.0,0.00013698,2]
[423754150,1780387839000,-500.0,0.00013698,2]
[423754149,1780387839000,-307.0,0.00013698,2]
[423754145,1780387839000,-592.12,0.00013698,2]
[423754159,1780387839000,-500.0,0.00013698,2]
[423754172,1780387839000,-500.0,0.00013698,2]
[423754158,1780387839000,-500.0,0.00013698,2]
[423754171,1780387839000,-136.28834083,0.00013698,2]
[423754174,1780387839000,-151.0,0.00013698,2]
[423754188,1780387839000,-221.2609568,0.00014435,2]
[423754187,1780387839000,-500.0,0.00014246,2]
[423754186,1780387839000,-383.38,0.00014246,2]
[423754184,1780387839000,-500.0,0.00013972,2]
[423754185,1780387839000,-720.0,0.00014056,2]
[423754181,1780387839000,-500.0,0.00013972,2]
[423754182,1780387839000,-202.65,0.00013972,2]
[423754189,1780387839000,-228.15292862,0.0001452,2]
[423754179,1780387839000,-169.37088564,0.00013972,2]
[423754180,1780387839000,-525.12,0.00013972,2]
[423754175,1780387839000,-500.0,0.00013698,2]
[423754178,1780387839000,-160.0,0.00013911,2]
[423754173,1780387839000,-500.0,0.00013698,2]
[423754176,1780387839000,-1000.0,0.00013699,2]
[423754169,1780387839000,-500.0,0.00013698,2]
[423754183,1780387839000,-230.18,0.00013972,2]
[423754195,1780387840000,-284.16217993,0.00014794,2]
[423754194,1780387840000,-271.84707138,0.0001452,2]
[423754197,1780387840000,-163.88553827,0.000149,2]
[423754196,1780387840000,-215.83782007,0.00014794,2]
[423754198,1780387840000,-71.29021144,0.000149,2]
[423754200,1780387840000,-185.0,0.00015171,2]
[423754199,1780387840000,-500.0,0.00015068,2]
[423754202,1780387840000,-325.55913015,0.00015342,2]
[423754203,1780387840000,-864.0,0.00015462,2]
[423754201,1780387840000,-444.0,0.00015171,2]
[423754207,1780387841000,-197.55676964,0.00015788,2]
[423754204,1780387841000,-500.0,0.00015736,2]
[423754205,1780387841000,-170.40669007,0.00015788,2]
[423754209,1780387841000,-191.84382795,0.000162,2]
[423754208,1780387841000,-191.84382795,0.00016,2]
[423754206,1780387841000,-152.27313463,0.00015788,2]
[423754212,1780387841000,-191.84382795,0.000165,2]
[423754210,1780387841000,-194.57511083,0.0001627,2]
[423754211,1780387841000,-191.84382795,0.000163,2]
[423754213,1780387841000,-52.77111564,0.00016522,2]
[423754253,1780387846000,-511.22007021,0.00017076,2]
[423754250,1780387846000,-196.99002093,0.00017036,2]
[423754251,1780387846000,-216.87201662,0.00017076,2]
[423754257,1780387846000,-166.38713037,0.00017076,2]
[423754252,1780387846000,-195.93343579,0.00017076,2]
[423754255,1780387846000,-310.64929149,0.00017076,2]
[423754261,1780387846000,-240.83237558,0.00017076,2]
[423754259,1780387846000,-399.93710389,0.00017076,2]
[423754260,1780387846000,-245.33460929,0.00017076,2]
[423754258,1780387846000,-311.51015173,0.00017076,2]
[423754254,1780387846000,-213.85248148,0.00017076,2]
[423754249,1780387846000,-347.27688363,0.00017036,2]
[423754246,1780387846000,-167.06878899,0.0001656,2]
[423754247,1780387846000,-1000.0,0.00017008,2]
[423754256,1780387846000,-250.07231548,0.00017076,2]
[423754245,1780387846000,-184.25155826,0.0001656,2]
[423754241,1780387846000,-199.96855195,0.0001656,2]
[423754242,1780387846000,-304.54626926,0.0001656,2]
[423754244,1780387846000,-198.09908954,0.0001656,2]
[423754243,1780387846000,-395.11353928,0.0001656,2]
[423754240,1780387846000,-155.75507587,0.0001656,2]
[423754239,1780387846000,-155.32464574,0.0001656,2]
[423754238,1780387846000,-340.81338014,0.0001656,2]
[423754236,1780387846000,-253.23157701,0.00014264,2]
[423754237,1780387846000,-120.86732617,0.00016522,2]
[423754248,1780387846000,-205.9648586,0.00017036,2]
[423754263,1780387846000,-592.67030892,0.00017076,2]
[423754271,1780387846000,-288.66341792,0.00017076,2]
[423754273,1780387846000,-368.50311651,0.00017076,2]
[423754291,1780387846000,-861.56037166,0.00017412,2]
[423754262,1780387846000,-456.81940389,0.00017076,2]
[423754287,1780387846000,-393.98004187,0.00017379,2]
[423754288,1780387846000,-166.90946017,0.00017379,2]
[423754289,1780387846000,-166.30924153,0.00017379,2]
[423754290,1780387846000,-501.20636698,0.00017379,2]
[423754286,1780387846000,-158.43129886,0.00017379,2]
[423754283,1780387846000,-189.01373693,0.00017379,2]
[423754284,1780387846000,-164.33636829,0.00017379,2]
[423754281,1780387846000,-169.23348224,0.00017379,2]
[423754279,1780387846000,-187.12378172,0.00017086,2]
[423754280,1780387846000,-152.0,0.00017115,2]
[423754285,1780387846000,-183.92887802,0.00017379,2]
[423754282,1780387846000,-165.84229699,0.00017379,2]
[423754276,1780387846000,-334.13757798,0.00017076,2]
[423754264,1780387846000,-156.55654597,0.00017076,2]
[423754278,1780387846000,-206.28885583,0.00017076,2]
[423754270,1780387846000,-256.95873525,0.00017076,2]
[423754267,1780387846000,-226.7375282,0.00017076,2]
[423754268,1780387846000,-396.19817907,0.00017076,2]
[423754266,1780387846000,-236.18948584,0.00017076,2]
[423754265,1780387846000,-291.02147661,0.00017076,2]
[423754269,1780387846000,-254.50175058,0.00017076,2]
[423754274,1780387846000,-272.71805743,0.00017076,2]
[423754275,1780387846000,-214.85687231,0.00017076,2]
[423754272,1780387846000,-238.2277503,0.00017076,2]
[423754277,1780387846000,-251.282635,0.00017076,2]
[423754304,1780387847000,-490.66921859,0.00017419,2]
[423754307,1780387847000,-790.22707856,0.00017419,2]
[423754309,1780387847000,-153.22520931,0.00017419,2]
[423754306,1780387847000,-609.09253853,0.00017419,2]
[423754308,1780387847000,-192.13697701,0.00017419,2]
[423754312,1780387847000,-313.11309195,0.00017419,2]
[423754322,1780387847000,-577.32683585,0.00017419,2]
[423754311,1780387847000,-582.04295321,0.00017419,2]
[423754315,1780387847000,-509.00350117,0.00017419,2]
[423754317,1780387847000,-513.91747049,0.00017419,2]
[423754316,1780387847000,-180.51656967,0.00017419,2]
[423754323,1780387847000,-476.4555006,0.00017419,2]
[423754305,1780387847000,-481.66475116,0.00017419,2]
[423754293,1780387847000,-419.7247113,0.00017412,2]
[423754303,1780387847000,-155.23085692,0.00017419,2]
[423754302,1780387847000,-332.77426074,0.00017419,2]
[423754298,1780387847000,-427.70496297,0.00017419,2]
[423754301,1780387847000,-384.64839861,0.00017419,2]
[423754295,1780387847000,-391.86687159,0.00017419,2]
[423754300,1780387847000,-500.14463096,0.00017419,2]
[423754299,1780387847000,-192.6802009,0.00017419,2]
[423754296,1780387847000,-305.18168653,0.00017419,2]
[423754297,1780387847000,-681.62676028,0.00017419,2]
[423754294,1780387847000,-433.74403323,0.00017419,2]
[423754292,1780387847000,-5403.11362534,0.00017412,2]
[423754313,1780387847000,-472.37897169,0.00017419,2]
[423754310,1780387847000,-392.77385617,0.00017419,2]
[423754318,1780387847000,-183.46541206,0.00017419,2]
[423754345,1780387847000,-152.0,0.0001948,7]
[423754314,1780387847000,-453.47505639,0.00017419,2]
[423754324,1780387847000,-552.75467477,0.00017419,2]
[423754347,1780387847000,-204.70516531,0.0001975,2]
[423754346,1780387847000,-824.0,0.00019726,2]
[423754342,1780387847000,-1065.91194242,0.00019051,2]
[423754339,1780387847000,-152.0,0.00019037,7]
[423754343,1780387847000,-250.0,0.00019403,2]
[423754344,1780387847000,-152.0,0.0001948,7]
[423754349,1780387847000,-19047.7335347,0.0001995,2]
[423754341,1780387847000,-1192.84683048,0.00019051,2]
[423754338,1780387847000,-152.0,0.00019037,7]
[423754340,1780387847000,-194.57511083,0.00019041,2]
[423754335,1780387847000,-913.63880779,0.00018278,2]
[423754333,1780387847000,-444.0,0.00018171,2]
[423754348,1780387847000,-151.07,0.00019786,2]
[423754332,1780387847000,-185.0,0.00018171,2]
[423754319,1780387847000,-186.35328692,0.00017419,2]
[423754321,1780387847000,-594.29726861,0.00017419,2]
[423754320,1780387847000,-186.55260714,0.00017419,2]
[423754326,1780387847000,-545.43611487,0.00017419,2]
[423754336,1780387847000,-1000.0,0.00018709,2]
[423754337,1780387847000,-244.0,0.00018709,2]
[423754327,1780387847000,-429.71374461,0.00017419,2]
[423754329,1780387847000,-852.03345034,0.00017763,2]
[423754331,1780387847000,-152.0,0.00018138,2]
[423754330,1780387847000,-761.36567316,0.00017763,2]
[423754334,1780387847000,-1022.44014041,0.00018278,2]
[423754325,1780387847000,-187.17708583,0.00017419,2]
[423754328,1780387847000,-502.56527001,0.00017419,2]
[423754423,1780387848000,-4133.93835324,0.0001995,2]
[423754425,1780387848000,-1317.89139505,0.0001995,2]
[423754428,1780387848000,-2626.99187919,0.0001995,2]
[423754541,1780388483000,168.1,0.000226,120]